Workbook

Sheet Tabelle1
A1: 0.1911270066 | B1: 0.7251032914 | C1: =SQRT(-2*LN(A1))*COS(2*PI()*B1) -> -0.2834256302 | E1: Klassen | F1: Häufigkeit
A2: 0.6911314251 | B2: 0.6027442826 | C2: =SQRT(-2*LN(A2))*COS(2*PI()*B2) -> -0.6865873199 | E2: -3 | F2: =FREQUENCY(Daten,Klassen) -> 1
A3: 0.4985546441 | B3: 0.1306615874 | C3: =SQRT(-2*LN(A3))*COS(2*PI()*B3) -> 0.8040917294 | E3: -2.5 | F3: 5
A4: 0.3490713802 | B4: 0.6746556793 | C4: -0.6614660159 | E4: -2 | F4: 20
A5: 0.9740859026 | B5: 0.4858683882 | C5: -0.2282513 | E5: -1.5 | F5: 51
A6: 0.09580620212 | B6: 0.1402788481 | C6: 1.377631358 | E6: -1 | F6: 99
A7: 0.4912796478 | B7: 0.4896984959 | C7: -1.189763235 | E7: -0.5 | F7: 128
A8: 0.3278094149 | B8: 0.3758591087 | C8: -1.061773774 | E8: 0 | F8: 197
A9: 0.4089652322 | B9: 0.4780925955 | C9: -1.324606224 | E9: 0.5 | F9: 203
A10: 0.3759679897 | B10: 0.8908499613 | C10: 1.08250182 | E10: 1 | F10: 151
A11: 0.6975241617 | B11: 0.5087395125 | C11: -0.8475058017 | E11: 1.5 | F11: 82
A12: 0.6796540541 | B12: 0.3351183564 | C12: -0.4479234348 | E12: 2 | F12: 43
A13: 0.9478795347 | B13: 0.07365363584 | C13: 0.2927778646 | E13: 2.5 | F13: 12
A14: 0.5215543332 | B14: 0.3558464153 | C14: -0.7041124506 | E14: 3 | F14: 6
A15: 0.8959535114 | B15: 0.9157306864 | C15: 0.4045704416
A16: 0.6968235781 | B16: 0.9193722834 | C16: 0.7432120747
A17: 0.1225781999 | B17: 0.8107352083 | C17: 0.7630443618
A18: 0.9982849163 | B18: 0.705141099 | C18: -0.01629697147
A19: 0.4739797519 | B19: 0.216808234 | C19: 0.2529960815
A20: 0.4747448031 | B20: 0.04480616616 | C20: 1.172584304
A21: 0.6356107348 | B21: 0.9968352185 | C21: 0.9518295976
A22: 0.8789115537 | B22: 0.7411086516 | C22: -0.02836944999
A23: 0.8044287393 | B23: 0.4382681475 | C23: -0.6107239379
A24: 0.592990307 | B24: 0.910866923 | C24: 0.8661510597
A25: 0.8702836248 | B25: 0.5572348437 | C25: -0.4934158519
A26: 0.756060623 | B26: 0.4873454286 | C26: -0.7454791671
A27: 0.5819044397 | B27: 0.8747702073 | C27: 0.7347690244
A28: 0.5233355863 | B28: 0.679154323 | C28: -0.4900052108
A29: 0.3892891336 | B29: 0.2561211704 | C29: -0.05281749265
A30: 0.3966718585 | B30: 0.1625364298 | C30: 0.7102734177
A31: 0.3034845644 | B31: 0.4534809781 | C31: -1.47879777
A32: 0.09256129386 | B32: 0.187763646 | C32: 0.8315562802
A33: 0.4490636655 | B33: 0.02690055241 | C33: 1.24734613
A34: 0.9198038583 | B34: 0.4273635231 | C34: -0.3670385979
A35: 0.4272060469 | B35: 0.1022628874 | C35: 1.044126493
A36: 0.1935887163 | B36: 0.7655911168 | C36: 0.1772418968
A37: 0.05777183508 | B37: 0.4690642092 | C37: -2.343022998
A38: 0.02890008348 | B38: 0.8795117123 | C38: 1.935130022
A39: 0.4092352718 | B39: 0.9363869192 | C39: 1.231398332
A40: 0.2106561688 | B40: 0.3407235282 | C40: -0.9524733796
A41: 0.8317753632 | B41: 0.3783457607 | C41: -0.4381036489
A42: 0.7228781049 | B42: 0.2266743459 | C42: 0.1176494764
A43: 0.777034705 | B43: 0.9386301935 | C43: 0.6581547397
A44: 0.4352237357 | B44: 0.2926498744 | C44: -0.3415360001
A45: 0.9843075607 | B45: 0.8351970495 | C45: 0.09072694616
A46: 0.2306352107 | B46: 0.9966887732 | C46: 1.712473724
A47: 0.09391322586 | B47: 0.6276304401 | C47: -1.512352578
A48: 0.7179770336 | B48: 0.9913778074 | C48: 0.8128299447
A49: 0.5482952173 | B49: 0.01368610507 | C49: 1.09225326
A50: 0.2387833823 | B50: 0.6971694538 | C50: -0.5515393201
A51: 0.8890557575 | B51: 0.6803180041 | C51: -0.2056106922
A52: 0.6378427351 | B52: 0.2695907637 | C52: -0.1164374772
A53: 0.08283284285 | B53: 0.3512728105 | C53: -1.326340479
A54: 0.9254517811 | B54: 0.6675037892 | C54: -0.1950204636
A55: 0.06193000975 | B55: 0.4763411873 | C55: -2.332694482
A56: 0.9085503925 | B56: 0.02133021928 | C56: 0.4340336091
A57: 0.8419242993 | B57: 0.7116213673 | C57: -0.1400921288
A58: 0.76259137 | B58: 0.04156994258 | C58: 0.7112797687
A59: 0.9120812057 | B59: 0.7125689816 | C59: -0.09997037424
A60: 0.50089049 | B60: 0.06422102605 | C60: 1.081458412
A61: 0.5363531048 | B61: 0.8042660219 | C61: 0.3732553793
A62: 0.6931337171 | B62: 0.7239399411 | C62: -0.1395674168
A63: 0.3149181868 | B63: 0.01614438223 | C63: 1.512345178
A64: 0.3216048059 | B64: 0.1246772156 | C64: 1.067255031
A65: 0.290633952 | B65: 0.06639650481 | C65: 1.43723414
A66: 0.3908371882 | B66: 0.8826735169 | C66: 1.014847167
A67: 0.4021763088 | B67: 0.8571386983 | C67: =SQRT(-2*LN(A67))*COS(2*PI()*B67) -> 0.8415056937
A68: 0.1250131174 | B68: 0.2637955912 | C68: -0.1765442604
A69: 0.6363712521 | B69: 0.6171927686 | C69: -0.7044462314
A70: 0.5894475893 | B70: 0.2956792646 | C70: -0.2910623373
A71: 0.2183122298 | B71: 0.1894775932 | C71: 0.6475539993
A72: 0.04915879175 | B72: 0.7163681708 | C72: -0.5148565901
A73: 0.7159928803 | B73: 0.173431591 | C73: 0.3782586361
A74: 0.0201041206 | B74: 0.1439781381 | C74: 1.727400324
A75: 0.07059645455 | B75: 0.7959325613 | C75: 0.655324371
A76: 0.5467742877 | B76: 0.6564545295 | C76: -0.6093053974
A77: 0.6346962486 | B77: 0.3226659098 | C77: -0.4203871514
A78: 0.3117095313 | B78: 0.8890485651 | C78: 1.170643153
A79: 0.1749155167 | B79: 0.2586639599 | C79: -0.1016018934
A80: 0.7478302133 | B80: 0.1155892263 | C80: 0.5699675169
A81: 0.2571208726 | B81: 0.259784098 | C81: -0.1012570748
A82: 0.8726755826 | B82: 0.9158644949 | C82: 0.4506603303
A83: 0.9131894816 | B83: 0.899856867 | C83: 0.3445561011
A84: 0.1972811972 | B84: 0.1325211799 | C84: 1.212413098
A85: 0.6006354992 | B85: 0.9262114226 | C85: 0.9031299963
A86: 0.1020203398 | B86: 0.9822293139 | C86: 2.123319935
A87: 0.3581007109 | B87: 0.1568457287 | C87: 0.7917424779
A88: 0.3077052921 | B88: 0.1614533076 | C88: 0.8107974146
A89: 0.2455266513 | B89: 0.6489615257 | C89: -0.9939053677
A90: 0.4422987069 | B90: 0.1804505745 | C90: 0.5405811233
A91: 0.1513273555 | B91: 0.8551543641 | C91: 1.192583348
A92: 0.6363122805 | B92: 0.5913668066 | C92: -0.7984312366
A93: 0.2163875735 | B93: 0.6521504457 | C93: -1.009214841
A94: 0.8498700499 | B94: 0.8293122948 | C94: 0.2726246735
A95: 0.2014518804 | B95: 0.4883585806 | C95: -1.785299898
A96: 0.9291527724 | B96: 0.5552585169 | C96: -0.3604838129
A97: 0.4470045833 | B97: 0.106030212 | C97: 0.9976548396
A98: 0.2835953272 | B98: 0.3493484405 | C98: -0.9278908999
A99: 0.6857964526 | B99: 0.8282123145 | C99: 0.4098435825
A100: 0.4416233117 | B100: 0.4561991477 | C100: -1.230400773
A101: 0.1707763306 | B101: 0.726171955 | C101: -0.2804317085
A102: 0.11463924 | B102: 0.5987755975 | C102: -1.693192181
A103: 0.7585922294 | B103: 0.02695447093 | C103: 0.7327231117
A104: 0.3211436087 | B104: 0.7874052715 | C104: 0.350982824
A105: 0.9017515038 | B105: 0.9940236519 | C105: 0.4544679063
A106: 0.4923894867 | B106: 0.5243994647 | C106: -1.176404578
A107: 0.7971804012 | B107: 0.7213985064 | C107: -0.1203495792
A108: 0.891144128 | B108: 0.1558560056 | C108: 0.2677179352
A109: 0.1318456464 | B109: 0.6881656584 | C109: -0.7625639497
A110: 0.7053488738 | B110: 0.9000609378 | C110: 0.6761532725
A111: 0.3782116459 | B111: 0.001086915426 | C111: 1.394457589
A112: 0.6728730485 | B112: 0.3095822812 | C112: -0.3255189149
A113: 0.5202930038 | B113: 0.6184960494 | C113: -0.8406567579
A114: 0.2651033552 | B114: 0.8612128536 | C114: 1.048220325
A115: 0.8181310274 | B115: 0.0340898699 | C115: 0.6191339262
A116: 0.4270121345 | B116: 0.3037999735 | C116: -0.4326377502
A117: 0.695323838 | B117: 0.03632875696 | C117: 0.8303868417
A118: 0.8723774129 | B118: 0.0487874615 | C118: 0.4981974629
A119: 0.2199015424 | B119: 0.7119124266 | C119: -0.4125440619
A120: 0.1570719284 | B120: 0.4142814005 | C120: -1.65170165
A121: 0.8897966632 | B121: 0.2490612645 | C121: 0.002850276179
A122: 0.4681183403 | B122: 0.03638046596 | C122: 1.200049734
A123: 0.6865375549 | B123: 0.1326341016 | C123: 0.5831550614
A124: 0.1058636213 | B124: 0.6320458459 | C124: -1.43074664
A125: 0.9933223156 | B125: 0.0564541966 | C125: 0.1085526517
A126: 0.3363733292 | B126: 0.276455916 | C126: -0.2442508624
A127: 0.2189765696 | B127: 0.9356702465 | C127: 1.602423875
A128: 0.753483961 | B128: 0.7956233022 | C128: 0.2127389282
A129: 0.8323892282 | B129: 0.2071257285 | C129: 0.1612096497
A130: 0.1271212699 | B130: 0.08884394464 | C130: 1.722745199
A131: 0.8953487096 | B131: 0.4484149352 | C131: =SQRT(-2*LN(A131))*COS(2*PI()*B131) -> -0.4457135045
A132: 0.8317097098 | B132: 0.5042145744 | C132: -0.6068650868
A133: 0.214109053 | B133: 0.5078993831 | C133: -1.753554137
A134: 0.7613656657 | B134: 0.6537160904 | C134: -0.4199741594
A135: 0.6464505075 | B135: 0.8033050004 | C135: 0.3070327977
A136: 0.2037198951 | B136: 0.1246345989 | C136: 1.264244758
A137: 0.7551639792 | B137: 0.7794564995 | C137: 0.1379138915
A138: 0.7654312659 | B138: 0.06093347307 | C138: 0.6782483547
A139: 0.2982077388 | B139: 0.9146889573 | C139: 1.337430805
A140: 0.3037787139 | B140: 0.225642376 | C140: 0.235327163
A141: 0.9895646301 | B141: 0.7298338028 | C141: -0.01830408597
A142: 0.2169550316 | B142: 0.2790938853 | C142: -0.3177942601
A143: 0.5826889988 | B143: 0.4504543625 | C143: -0.9893728383
A144: 0.818810278 | B144: 0.2849289288 | C144: -0.1376568249
A145: 0.1444808653 | B145: 0.7228062365 | C145: -0.3344609958
A146: 0.8458509817 | B146: 0.6279019006 | C146: -0.4016323238
A147: 0.1820069944 | B147: 0.9010366037 | C147: 1.500415676
A148: 0.3726143888 | B148: 0.6835335802 | C148: -0.5699069658
A149: 0.5641418473 | B149: 0.86696431 | C149: 0.7174552946
A150: 0.6266526017 | B150: 0.734438347 | C150: -0.09438120531
A151: 0.1160510793 | B151: 0.3407239592 | C151: -1.120035681
A152: 0.4246753237 | B152: 0.05197770755 | C152: 1.239586078
A153: 0.6660377353 | B153: 0.1283070637 | C153: 0.6241188626
A154: 0.6057901536 | B154: 0.1950169811 | C154: 0.3390509693
A155: 0.3274665083 | B155: 0.8911981199 | C155: 1.158465497
A156: 0.3795476419 | B156: 0.5005503111 | C156: -1.391950839
A157: 0.9585640726 | B157: 0.3188992441 | C157: -0.12204656
A158: 0.3711258088 | B158: 0.1327015963 | C158: 0.9462732388
A159: 0.1642455492 | B159: 0.07604258759 | C159: 1.687876334
A160: 0.5544591156 | B160: 0.6805887718 | C160: -0.4587829801
A161: 0.5583571767 | B161: 0.1540422231 | C161: 0.6121815412
A162: 0.6087097239 | B162: 0.6619316476 | C162: -0.5236519591
A163: 0.5854537119 | B163: 0.9550585951 | C163: 0.9937834498
A164: 0.2377483993 | B164: 0.7556293554 | C164: 0.05994075175
A165: 0.6572717344 | B165: 0.901407156 | C165: 0.7459061782
A166: 0.12998169 | B166: 0.8699377561 | C166: 1.38226393
A167: 0.9110171335 | B167: 0.2400690456 | C167: 0.02692135915
A168: 0.09964716634 | B168: 0.63315792 | C168: -1.438791388
A169: 0.4433416207 | B169: 0.3800957173 | C169: -0.9303041464
A170: 0.3704332042 | B170: 0.3628118421 | C170: -0.9173738326
A171: 0.02055326784 | B171: 0.6492389299 | C171: -1.649143787
A172: 0.6309746086 | B172: 0.3668452251 | C172: -0.6429487556
A173: 0.8928832493 | B173: 0.1756849038 | C173: 0.2142831626
A174: 0.5126873372 | B174: 0.1024561763 | C174: 0.9245719542
A175: 0.5582905788 | B175: 0.298931736 | C175: -0.3267457296
A176: 0.6815295946 | B176: 0.6454217751 | C176: -0.5348803983
A177: 0.7170770252 | B177: 0.8684293654 | C177: 0.5523975561
A178: 0.5521227064 | B178: 0.8573371403 | C178: 0.6806064082
A179: 0.8576256368 | B179: 0.01506912481 | C179: 0.5517514623
A180: 0.297911768 | B180: 0.3649334238 | C180: -1.028678558
A181: 0.4934678907 | B181: 0.2233478907 | C181: 0.1981018667
A182: 0.2040075369 | B182: 0.2943080246 | C182: -0.490000427
A183: 0.973029119 | B183: 0.1873731837 | C183: 0.08965995179
A184: 0.3014447568 | B184: 0.4063679889 | C184: -1.288298327
A185: 0.2092451314 | B185: 0.5859958022 | C185: -1.51677939
A186: 0.3055874754 | B186: 0.03480911776 | C186: 1.503135642
A187: 0.2832565903 | B187: 0.6442928062 | C187: -0.9790679909
A188: 0.5441518001 | B188: 0.3518732943 | C188: -0.6589056047
A189: 0.3975531309 | B189: 0.1459329473 | C189: 0.8261779152
A190: 0.8510156252 | B190: 0.08690808538 | C190: 0.4854192576
A191: 0.08521978067 | B191: 0.780412104 | C191: 0.421487997
A192: 0.3948417889 | B192: 0.5093022013 | C192: -1.360955001
A193: 0.887408316 | B193: 0.3483094306 | C193: -0.2830778046
A194: 0.9316406247 | B194: 0.2891051217 | C194: -0.09153590325
A195: 0.6165397524 | B195: 0.8960406577 | C195: =SQRT(-2*LN(A195))*COS(2*PI()*B195) -> 0.7810393258
A196: 0.9466251635 | B196: 0.2659388882 | C196: -0.03311488418
A197: 0.484725568 | B197: 0.6428690065 | C197: -0.7502823587
A198: 0.3650709854 | B198: 0.9065658515 | C198: 1.181935535
A199: 0.2260574466 | B199: 0.5729351296 | C199: -1.546576872
A200: 0.5193652907 | B200: 0.1725082999 | C200: 0.5355778197
... 800 more rows

Sheet Tabelle2

Sheet Tabelle3
